[Event "Titled Tuesday Blitz March 21 Early 2023"]
[White "Levitan, Caleb Levi"]
[Black "Semenova, Alina"]
[WhiteFideId "14332620"]
[BlackFideId "24113875"]
[WhiteElo "1963"]
[BlackElo "1833"]
[Result "1-0"]
[Round "06"]
[TimeControl "180+2"]
[Date "2023.03.21"]
[WhiteClock "0:00:37"]
[BlackClock "0:00:07"]

1. e4 {[%clk 0:03:00]}  e5 {[%clk 0:02:59]} 2. Nf3 {[%clk 0:02:59]}  Nf6 {[%clk 0:02:59]} 3. Nxe5 {[%clk 0:02:58]}  d6 {[%clk 0:03:00]} 4. Nf3 {[%clk 0:02:57]}  Nxe4 {[%clk 0:03:00]} 5. Nc3 {[%clk 0:02:58]}  Nxc3 {[%clk 0:02:59]} 6. dxc3 {[%clk 0:02:59]}  Be6 {[%clk 0:02:59]} 7. Be3 {[%clk 0:02:59]}  Nc6 {[%clk 0:02:57]} 8. Qd2 {[%clk 0:03:00]}  Be7 {[%clk 0:02:57]} 9. Bd3 {[%clk 0:03:00]}  Qd7 {[%clk 0:02:57]} 10. O-O-O {[%clk 0:02:56]}  O-O-O {[%clk 0:02:43]} 11. Bb5 {[%clk 0:02:54]}  a6 {[%clk 0:02:40]} 12. Ba4 {[%clk 0:02:52]}  Kb8 {[%clk 0:02:07]} 13. Nd4 {[%clk 0:02:50]}  Qe8 {[%clk 0:01:37]} 14. Nxc6+ {[%clk 0:02:47]}  bxc6 {[%clk 0:01:37]} 15. c4 {[%clk 0:02:40]}  Bxc4 {[%clk 0:01:33]} 16. Qd4 {[%clk 0:02:37]}  Bb5 {[%clk 0:01:24]} 17. Qa7+ {[%clk 0:02:37]}  Kc8 {[%clk 0:01:24]} 18. Bb3 {[%clk 0:02:34]}  Bf6 {[%clk 0:01:00]} 19. a4 {[%clk 0:02:31]}  Qe5 {[%clk 0:00:58]} 20. Bd4 {[%clk 0:02:30]}  Qf4+ {[%clk 0:00:54]} 21. Kb1 {[%clk 0:02:29]}  Be2 {[%clk 0:00:38]} 22. Bxf6 {[%clk 0:02:16]}  Qxf6 {[%clk 0:00:37]} 23. Rd2 {[%clk 0:02:14]}  Bg4 {[%clk 0:00:32]} 24. Qxa6+ {[%clk 0:02:10]}  Kd7 {[%clk 0:00:31]} 25. a5 {[%clk 0:02:07]}  Ra8 {[%clk 0:00:31]} 26. Qc4 {[%clk 0:01:54]}  Be6 {[%clk 0:00:30]} 27. Qa4 {[%clk 0:01:54]}  Bxb3 {[%clk 0:00:27]} 28. cxb3 {[%clk 0:01:54]}  Qf5+ {[%clk 0:00:25]} 29. Rc2 {[%clk 0:01:54]}  Rxa5 {[%clk 0:00:21]} 30. Qxc6+ {[%clk 0:01:53]}  Ke6 {[%clk 0:00:10]} 31. Re1+ {[%clk 0:01:39]}  Kf6 {[%clk 0:00:09]} 32. Qc3+ {[%clk 0:01:10]}  Kg6 {[%clk 0:00:08]} 33. Qg3+ {[%clk 0:01:07]}  Qg5 {[%clk 0:00:07]} 34. Rxc7 {[%clk 0:01:02]}  Rha8 {[%clk 0:00:03]} 35. Qxg5+ {[%clk 0:00:53]}  Kxg5 {[%clk 0:00:02]} 36. Ree7 {[%clk 0:00:50]}  Ra1+ {[%clk 0:00:01]} 37. Kc2 {[%clk 0:00:50]}  f6 {[%clk 0:00:01]} 38. Rxg7+ {[%clk 0:00:50]}  Kf5 {[%clk 0:00:01]} 39. Rxh7 {[%clk 0:00:50]}  Rf1 {[%clk 0:00:02]} 40. f3 {[%clk 0:00:48]}  Rf2+ {[%clk 0:00:02]} 41. Kc3 {[%clk 0:00:49]}  Rxg2 {[%clk 0:00:02]} 42. Rh5+ {[%clk 0:00:40]}  Kg6 {[%clk 0:00:02]} 43. Rh4 {[%clk 0:00:39]}  Kf5 {[%clk 0:00:01]} 44. Rcc4 {[%clk 0:00:34]}  Re8 {[%clk 0:00:02]} 45. Rcf4+ {[%clk 0:00:30]}  Kg5 {[%clk 0:00:02]} 46. Rfg4+ {[%clk 0:00:30]}  Rxg4 {[%clk 0:00:03]} 47. Rxg4+ {[%clk 0:00:31]}  Kf5 {[%clk 0:00:03]} 48. Rd4 {[%clk 0:00:30]}  Re3+ {[%clk 0:00:02]} 49. Rd3 {[%clk 0:00:31]}  Re2 {[%clk 0:00:03]} 50. h4 {[%clk 0:00:29]}  Rh2 {[%clk 0:00:03]} 51. h5 {[%clk 0:00:29]}  Rxh5 {[%clk 0:00:01]} 52. Rd5+ {[%clk 0:00:29]}  Kg6 {[%clk 0:00:02]} 53. Rxh5 {[%clk 0:00:29]}  Kxh5 {[%clk 0:00:03]} 54. Kd4 {[%clk 0:00:30]}  Kg5 {[%clk 0:00:04]} 55. b4 {[%clk 0:00:29]}  Kf4 {[%clk 0:00:04]} 56. b5 {[%clk 0:00:30]}  Kxf3 {[%clk 0:00:05]} 57. b6 {[%clk 0:00:31]}  Kg2 {[%clk 0:00:03]} 58. b7 {[%clk 0:00:32]}  f5 {[%clk 0:00:03]} 59. b8=Q {[%clk 0:00:33]}  f4 {[%clk 0:00:04]} 60. Qxd6 {[%clk 0:00:34]}  f3 {[%clk 0:00:05]} 61. Qg6+ {[%clk 0:00:34]}  Kf2 {[%clk 0:00:05]} 62. Qf5 {[%clk 0:00:35]}  Ke2 {[%clk 0:00:05]} 63. b4 {[%clk 0:00:35]}  f2 {[%clk 0:00:05]} 64. b5 {[%clk 0:00:36]}  f1=Q {[%clk 0:00:06]} 65. Qxf1+ {[%clk 0:00:36]}  Kxf1 {[%clk 0:00:07]} 66. b6 {[%clk 0:00:37]}  Kg2 {[%clk 0:00:07]} 1-0


[Site "https://www.chess.com"]

[Event "Titled Tuesday Blitz March 21 Early 2023"]
[White "ritanovikova"]
[Black "Ruge, Edison"]
[BlackFideId "4401000"]
[WhiteElo "2208"]
[BlackElo "2175"]
[Result "0-1"]
[Round "06"]
[TimeControl "180+2"]
[Date "2023.03.21"]
[WhiteClock "0:01:16"]
[BlackClock "0:01:42"]

1. e4 {[%clk 0:02:55]}  e5 {[%clk 0:02:59]} 2. Nf3 {[%clk 0:02:55]}  Nc6 {[%clk 0:02:59]} 3. Bc4 {[%clk 0:02:54]}  Be7 {[%clk 0:02:58]} 4. d4 {[%clk 0:02:52]}  d6 {[%clk 0:02:56]} 5. dxe5 {[%clk 0:02:51]}  dxe5 {[%clk 0:02:55]} 6. O-O {[%clk 0:02:51]}  Qxd1 {[%clk 0:02:54]} 7. Rxd1 {[%clk 0:02:50]}  Nf6 {[%clk 0:02:54]} 8. Nc3 {[%clk 0:02:46]}  Bg4 {[%clk 0:02:54]} 9. Be2 {[%clk 0:02:45]}  Bxf3 {[%clk 0:02:51]} 10. Bxf3 {[%clk 0:02:44]}  Nd4 {[%clk 0:02:51]} 11. Rd2 {[%clk 0:02:16]}  Nxf3+ {[%clk 0:02:47]} 12. gxf3 {[%clk 0:02:16]}  c6 {[%clk 0:02:46]} 13. a3 {[%clk 0:02:13]}  O-O {[%clk 0:02:44]} 14. b4 {[%clk 0:02:12]}  Rfd8 {[%clk 0:02:43]} 15. Kf1 {[%clk 0:02:07]}  Nh5 {[%clk 0:02:42]} 16. Rxd8+ {[%clk 0:02:05]}  Rxd8 {[%clk 0:02:38]} 17. Ke2 {[%clk 0:02:05]}  h6 {[%clk 0:02:27]} 18. Be3 {[%clk 0:02:02]}  b6 {[%clk 0:02:26]} 19. Rd1 {[%clk 0:01:53]}  Rxd1 {[%clk 0:02:25]} 20. Nxd1 {[%clk 0:01:54]}  Kf8 {[%clk 0:02:17]} 21. c3 {[%clk 0:01:46]}  Ke8 {[%clk 0:02:17]} 22. Nb2 {[%clk 0:01:44]}  Kd7 {[%clk 0:02:17]} 23. Nd3 {[%clk 0:01:44]}  Ke6 {[%clk 0:02:16]} 24. f4 {[%clk 0:01:43]}  exf4 {[%clk 0:02:07]} 25. Nxf4+ {[%clk 0:01:44]}  Nxf4+ {[%clk 0:02:07]} 26. Bxf4 {[%clk 0:01:45]}  Bf6 {[%clk 0:02:05]} 27. Kd3 {[%clk 0:01:44]}  Be5 {[%clk 0:01:59]} 28. Bg3 {[%clk 0:01:38]}  g5 {[%clk 0:01:56]} 29. Ke3 {[%clk 0:01:35]}  Bxc3 {[%clk 0:01:47]} 30. Bb8 {[%clk 0:01:32]}  a6 {[%clk 0:01:45]} 31. Bc7 {[%clk 0:01:29]}  b5 {[%clk 0:01:43]} 32. Bb6 {[%clk 0:01:22]}  Bb2 {[%clk 0:01:43]} 33. Bc5 {[%clk 0:01:19]}  Bxa3 {[%clk 0:01:43]} 34. f4 {[%clk 0:01:16]}  Bc1+ {[%clk 0:01:42]} 0-1


[Site "https://www.chess.com"]

[Event "Titled Tuesday Blitz March 21 Early 2023"]
[White "Larina, Maria"]
[Black "Piesik, Piotr"]
[WhiteFideId "24113182"]
[BlackFideId "1136194"]
[WhiteElo "1848"]
[BlackElo "2311"]
[Result "0-1"]
[Round "06"]
[TimeControl "180+2"]
[Date "2023.03.21"]
[WhiteClock "0:00:04"]
[BlackClock "0:00:43"]

1. e4 {[%clk 0:03:00]}  g6 {[%clk 0:03:00]} 2. d4 {[%clk 0:03:00]}  Bg7 {[%clk 0:03:00]} 3. Nc3 {[%clk 0:02:59]}  c6 {[%clk 0:03:00]} 4. Nf3 {[%clk 0:02:55]}  d6 {[%clk 0:03:00]} 5. h3 {[%clk 0:02:47]}  Nf6 {[%clk 0:03:00]} 6. Be2 {[%clk 0:02:45]}  O-O {[%clk 0:03:00]} 7. O-O {[%clk 0:02:45]}  Nbd7 {[%clk 0:03:00]} 8. a4 {[%clk 0:02:45]}  e5 {[%clk 0:03:00]} 9. dxe5 {[%clk 0:02:44]}  dxe5 {[%clk 0:03:01]} 10. Bg5 {[%clk 0:02:41]}  Qc7 {[%clk 0:02:57]} 11. Bc4 {[%clk 0:02:39]}  Nc5 {[%clk 0:02:55]} 12. Qe2 {[%clk 0:02:35]}  Be6 {[%clk 0:02:53]} 13. b4 {[%clk 0:02:17]}  Bxc4 {[%clk 0:02:52]} 14. Qxc4 {[%clk 0:02:18]}  Ne6 {[%clk 0:02:53]} 15. Be3 {[%clk 0:02:11]}  Rfd8 {[%clk 0:02:47]} 16. Rfd1 {[%clk 0:02:10]}  Bf8 {[%clk 0:02:42]} 17. Ng5 {[%clk 0:01:49]}  Nxg5 {[%clk 0:02:23]} 18. Bxg5 {[%clk 0:01:49]}  Be7 {[%clk 0:02:24]} 19. b5 {[%clk 0:01:24]}  Rxd1+ {[%clk 0:02:21]} 20. Rxd1 {[%clk 0:01:23]}  Rd8 {[%clk 0:02:21]} 21. Rxd8+ {[%clk 0:01:20]}  Bxd8 {[%clk 0:02:21]} 22. bxc6 {[%clk 0:01:19]}  Qxc6 {[%clk 0:02:16]} 23. Qxc6 {[%clk 0:01:16]}  bxc6 {[%clk 0:02:16]} 24. f4 {[%clk 0:01:06]}  Bb6+ {[%clk 0:02:14]} 25. Kf1 {[%clk 0:01:00]}  Nd7 {[%clk 0:02:13]} 26. f5 {[%clk 0:00:36]}  f6 {[%clk 0:01:57]} 27. Bd2 {[%clk 0:00:32]}  Ba5 {[%clk 0:01:53]} 28. Ke2 {[%clk 0:00:26]}  Nc5 {[%clk 0:01:50]} 29. Ke3 {[%clk 0:00:20]}  Kf7 {[%clk 0:01:41]} 30. Be1 {[%clk 0:00:13]}  Bxc3 {[%clk 0:01:36]} 31. Bxc3 {[%clk 0:00:13]}  Nxa4 {[%clk 0:01:36]} 32. Bb4 {[%clk 0:00:12]}  a6 {[%clk 0:01:23]} 33. g4 {[%clk 0:00:11]}  Nb6 {[%clk 0:01:21]} 34. Bc5 {[%clk 0:00:10]}  Nd7 {[%clk 0:01:20]} 35. Bd6 {[%clk 0:00:09]}  gxf5 {[%clk 0:01:18]} 36. gxf5 {[%clk 0:00:07]}  Ke8 {[%clk 0:01:10]} 37. Kd3 {[%clk 0:00:07]}  Nb6 {[%clk 0:01:08]} 38. Bc5 {[%clk 0:00:06]}  Na8 {[%clk 0:01:01]} 39. Kc4 {[%clk 0:00:06]}  Kd7 {[%clk 0:00:58]} 40. Be3 {[%clk 0:00:06]}  Nc7 {[%clk 0:00:57]} 41. Bh6 {[%clk 0:00:06]}  Nb5 {[%clk 0:00:55]} 42. Bg7 {[%clk 0:00:05]}  Nd6+ {[%clk 0:00:53]} 43. Kc5 {[%clk 0:00:03]}  Nxe4+ {[%clk 0:00:53]} 44. Kb6 {[%clk 0:00:03]}  Ke7 {[%clk 0:00:51]} 45. Kxa6 {[%clk 0:00:03]}  Nd6 {[%clk 0:00:49]} 46. Bh6 {[%clk 0:00:02]}  Nxf5 {[%clk 0:00:49]} 47. Bd2 {[%clk 0:00:03]}  Kd6 {[%clk 0:00:49]} 48. Kb6 {[%clk 0:00:04]}  Kd5 {[%clk 0:00:47]} 49. c3 {[%clk 0:00:04]}  Nd6 {[%clk 0:00:46]} 50. Kc7 {[%clk 0:00:04]}  f5 {[%clk 0:00:45]} 51. Kd7 {[%clk 0:00:04]}  f4 {[%clk 0:00:44]} 52. c4+ {[%clk 0:00:05]}  Nxc4 {[%clk 0:00:44]} 53. Bc3 {[%clk 0:00:04]}  f3 {[%clk 0:00:43]} 0-1


[Site "https://www.chess.com"]

[Event "Titled Tuesday Blitz March 21 Early 2023"]
[White "Winkels, Marcel"]
[Black "Blomqvist, Erik"]
[WhiteFideId "1003887"]
[BlackFideId "1709437"]
[WhiteElo "1900"]
[BlackElo "2436"]
[Result "0-1"]
[Round "06"]
[TimeControl "180+2"]
[Date "2023.03.21"]
[WhiteClock "0:00:40"]
[BlackClock "0:01:03"]

1. e4 {[%clk 0:03:00]}  c5 {[%clk 0:02:59]} 2. Nf3 {[%clk 0:02:59]}  e6 {[%clk 0:02:59]} 3. d4 {[%clk 0:02:58]}  cxd4 {[%clk 0:02:59]} 4. Nxd4 {[%clk 0:02:58]}  Nc6 {[%clk 0:03:00]} 5. Nc3 {[%clk 0:02:58]}  Qc7 {[%clk 0:02:59]} 6. Be3 {[%clk 0:02:55]}  a6 {[%clk 0:02:59]} 7. Be2 {[%clk 0:02:54]}  b5 {[%clk 0:02:55]} 8. Nxc6 {[%clk 0:02:52]}  Qxc6 {[%clk 0:02:56]} 9. Bf3 {[%clk 0:02:52]}  Bb7 {[%clk 0:02:52]} 10. O-O {[%clk 0:02:44]}  Qc7 {[%clk 0:02:52]} 11. a4 {[%clk 0:02:34]}  b4 {[%clk 0:02:52]} 12. Na2 {[%clk 0:02:29]}  Bd6 {[%clk 0:02:40]} 13. g3 {[%clk 0:02:27]}  Nf6 {[%clk 0:02:40]} 14. Qd3 {[%clk 0:02:07]}  a5 {[%clk 0:02:28]} 15. c3 {[%clk 0:02:06]}  Ba6 {[%clk 0:02:22]} 16. Qd2 {[%clk 0:01:48]}  Bxf1 {[%clk 0:02:16]} 17. Rxf1 {[%clk 0:01:49]}  O-O {[%clk 0:01:56]} 18. e5 {[%clk 0:01:44]}  Bxe5 {[%clk 0:01:56]} 19. Bxa8 {[%clk 0:01:43]}  Rxa8 {[%clk 0:01:57]} 20. cxb4 {[%clk 0:01:39]}  Qc4 {[%clk 0:01:51]} 21. Nc3 {[%clk 0:01:31]}  axb4 {[%clk 0:01:47]} 22. Ne2 {[%clk 0:01:27]}  Rxa4 {[%clk 0:01:44]} 23. Rc1 {[%clk 0:01:25]}  Qa6 {[%clk 0:01:41]} 24. Qc2 {[%clk 0:01:11]}  h5 {[%clk 0:01:34]} 25. Qc8+ {[%clk 0:01:02]}  Qxc8 {[%clk 0:01:33]} 26. Rxc8+ {[%clk 0:01:02]}  Kh7 {[%clk 0:01:34]} 27. Rc2 {[%clk 0:00:59]}  b3 {[%clk 0:01:26]} 28. Rd2 {[%clk 0:00:58]}  d5 {[%clk 0:01:15]} 29. Nd4 {[%clk 0:00:54]}  Ne4 {[%clk 0:01:12]} 30. Rd1 {[%clk 0:00:47]}  Ra2 {[%clk 0:01:06]} 31. Nxb3 {[%clk 0:00:45]}  Rxb2 {[%clk 0:01:07]} 32. Nd4 {[%clk 0:00:43]}  Nc3 {[%clk 0:01:03]} 33. Ra1 {[%clk 0:00:41]}  Bxd4 {[%clk 0:01:03]} 34. Bxd4 {[%clk 0:00:40]}  Ne2+ {[%clk 0:01:03]} 0-1


[Site "https://www.chess.com"]

[Event "Titled Tuesday Blitz March 21 Early 2023"]
[White "Bethke, Richard"]
[Black "th3d4rkness"]
[WhiteFideId "12959243"]
[WhiteElo "2369"]
[BlackElo "2113"]
[Result "1-0"]
[Round "06"]
[TimeControl "180+2"]
[Date "2023.03.21"]
[WhiteClock "0:01:47"]
[BlackClock "0:00:04"]

1. e4 {[%clk 0:03:00]}  c5 {[%clk 0:02:58]} 2. Nf3 {[%clk 0:03:00]}  Nc6 {[%clk 0:02:57]} 3. d4 {[%clk 0:03:01]}  cxd4 {[%clk 0:02:58]} 4. Nxd4 {[%clk 0:03:02]}  Nf6 {[%clk 0:02:58]} 5. Nc3 {[%clk 0:03:02]}  e5 {[%clk 0:02:58]} 6. Ndb5 {[%clk 0:03:02]}  d6 {[%clk 0:02:58]} 7. Bg5 {[%clk 0:03:02]}  a6 {[%clk 0:02:58]} 8. Na3 {[%clk 0:03:01]}  b5 {[%clk 0:02:58]} 9. Bxf6 {[%clk 0:03:01]}  gxf6 {[%clk 0:02:56]} 10. Nd5 {[%clk 0:03:01]}  f5 {[%clk 0:02:56]} 11. Bd3 {[%clk 0:03:00]}  Be6 {[%clk 0:02:54]} 12. c4 {[%clk 0:02:59]}  b4 {[%clk 0:02:34]} 13. Nc2 {[%clk 0:02:56]}  Rb8 {[%clk 0:02:31]} 14. Nce3 {[%clk 0:02:53]}  f4 {[%clk 0:02:27]} 15. Nf5 {[%clk 0:02:52]}  Bxf5 {[%clk 0:02:16]} 16. exf5 {[%clk 0:02:53]}  Be7 {[%clk 0:01:38]} 17. f6 {[%clk 0:02:46]}  Bxf6 {[%clk 0:01:35]} 18. Qa4 {[%clk 0:02:45]}  Rc8 {[%clk 0:01:25]} 19. Bf5 {[%clk 0:02:43]}  O-O {[%clk 0:01:11]} 20. Bxc8 {[%clk 0:02:37]}  Nd4 {[%clk 0:01:07]} 21. Bg4 {[%clk 0:02:32]}  Bg7 {[%clk 0:01:01]} 22. O-O {[%clk 0:02:31]}  Qg5 {[%clk 0:00:57]} 23. Qd7 {[%clk 0:02:24]}  f5 {[%clk 0:00:53]} 24. Bh3 {[%clk 0:02:20]}  f3 {[%clk 0:00:50]} 25. Kh1 {[%clk 0:02:19]}  f4 {[%clk 0:00:19]} 26. Qg4 {[%clk 0:02:12]}  Qh6 {[%clk 0:00:17]} 27. gxf3 {[%clk 0:02:10]}  Kh8 {[%clk 0:00:16]} 28. Ne7 {[%clk 0:02:07]}  Bf6 {[%clk 0:00:13]} 29. Nf5 {[%clk 0:02:06]}  Nxf5 {[%clk 0:00:11]} 30. Qxf5 {[%clk 0:02:07]}  Be7 {[%clk 0:00:10]} 31. Qe6 {[%clk 0:01:57]}  Bf6 {[%clk 0:00:09]} 32. Rg1 {[%clk 0:01:57]}  e4 {[%clk 0:00:08]} 33. fxe4 {[%clk 0:01:52]}  f3 {[%clk 0:00:06]} 34. Rg4 {[%clk 0:01:50]}  Be5 {[%clk 0:00:04]} 35. Qxh6 {[%clk 0:01:47]} 1-0


[Site "https://www.chess.com"]

[Event "Titled Tuesday Blitz March 21 Early 2023"]
[White "Sanchez, Robert"]
[Black "Vargas Pereda, Jesus Manue"]
[WhiteFideId "2034360"]
[BlackFideId "5115710"]
[WhiteElo "2169"]
[BlackElo "1914"]
[Result "1-0"]
[Round "06"]
[TimeControl "180+2"]
[Date "2023.03.21"]
[WhiteClock "0:01:39"]
[BlackClock "0:01:38"]

1. e4 {[%clk 0:03:00]}  d5 {[%clk 0:03:00]} 2. exd5 {[%clk 0:03:00]}  Qxd5 {[%clk 0:02:58]} 3. Nc3 {[%clk 0:03:01]}  Qd6 {[%clk 0:02:58]} 4. Nf3 {[%clk 0:03:02]}  Nf6 {[%clk 0:02:59]} 5. Bc4 {[%clk 0:03:01]}  a6 {[%clk 0:02:59]} 6. O-O {[%clk 0:03:01]}  e6 {[%clk 0:02:58]} 7. d4 {[%clk 0:03:01]}  b5 {[%clk 0:02:58]} 8. Bd3 {[%clk 0:03:01]}  Bb7 {[%clk 0:02:54]} 9. Bg5 {[%clk 0:03:01]}  Be7 {[%clk 0:02:54]} 10. Qe2 {[%clk 0:02:59]}  Nbd7 {[%clk 0:02:53]} 11. Rad1 {[%clk 0:02:56]}  O-O {[%clk 0:02:53]} 12. Ne5 {[%clk 0:02:55]}  h6 {[%clk 0:02:51]} 13. Bf4 {[%clk 0:02:51]}  Qb6 {[%clk 0:02:40]} 14. Nxd7 {[%clk 0:02:40]}  Nxd7 {[%clk 0:02:39]} 15. d5 {[%clk 0:02:38]}  Nc5 {[%clk 0:02:22]} 16. dxe6 {[%clk 0:02:22]}  Qxe6 {[%clk 0:02:21]} 17. Qxe6 {[%clk 0:02:16]}  Nxe6 {[%clk 0:02:21]} 18. Bg3 {[%clk 0:02:16]}  c5 {[%clk 0:02:20]} 19. Rfe1 {[%clk 0:02:13]}  Bf6 {[%clk 0:02:20]} 20. Be5 {[%clk 0:02:07]}  Bxe5 {[%clk 0:02:18]} 21. Rxe5 {[%clk 0:02:07]}  Rad8 {[%clk 0:02:18]} 22. Rde1 {[%clk 0:02:07]}  c4 {[%clk 0:02:17]} 23. Bf1 {[%clk 0:02:07]}  Nd4 {[%clk 0:02:13]} 24. Rc1 {[%clk 0:02:04]}  Rfe8 {[%clk 0:02:12]} 25. Rxe8+ {[%clk 0:02:02]}  Rxe8 {[%clk 0:02:12]} 26. h3 {[%clk 0:02:02]}  Be4 {[%clk 0:02:10]} 27. Nxe4 {[%clk 0:02:02]}  Rxe4 {[%clk 0:02:10]} 28. c3 {[%clk 0:02:02]}  Nf5 {[%clk 0:02:08]} 29. Rd1 {[%clk 0:01:56]}  Re7 {[%clk 0:02:06]} 30. a4 {[%clk 0:01:54]}  Nh4 {[%clk 0:01:57]} 31. axb5 {[%clk 0:01:53]}  axb5 {[%clk 0:01:57]} 32. Rd8+ {[%clk 0:01:47]}  Kh7 {[%clk 0:01:57]} 33. Rb8 {[%clk 0:01:46]}  Re5 {[%clk 0:01:56]} 34. b3 {[%clk 0:01:40]}  cxb3 {[%clk 0:01:54]} 35. Bxb5 {[%clk 0:01:40]}  Re1+ {[%clk 0:01:39]} 36. Kh2 {[%clk 0:01:40]}  Rb1 {[%clk 0:01:39]} 37. Bd3+ {[%clk 0:01:40]}  g6 {[%clk 0:01:38]} 38. Bxb1 {[%clk 0:01:39]} 1-0


[Site "https://www.chess.com"]

[Event "Titled Tuesday Blitz March 21 Early 2023"]
[White "Dubov, Daniil"]
[Black "Le, Tuan Minh"]
[WhiteFideId "24126055"]
[BlackFideId "12401153"]
[WhiteElo "2802"]
[BlackElo "2558"]
[Result "1-0"]
[Round "07"]
[TimeControl "180+2"]
[Date "2023.03.21"]
[WhiteClock "0:00:11"]
[BlackClock "0:00:04"]

1. d4 {[%clk 0:03:00]}  d5 {[%clk 0:03:00]} 2. c4 {[%clk 0:03:00]}  e6 {[%clk 0:03:00]} 3. Nf3 {[%clk 0:03:00]}  a6 {[%clk 0:02:59]} 4. g3 {[%clk 0:02:58]}  dxc4 {[%clk 0:02:55]} 5. Bg2 {[%clk 0:02:59]}  b5 {[%clk 0:02:44]} 6. Ne5 {[%clk 0:02:58]}  c6 {[%clk 0:02:39]} 7. O-O {[%clk 0:02:56]}  Bb7 {[%clk 0:02:36]} 8. b3 {[%clk 0:02:55]}  cxb3 {[%clk 0:02:36]} 9. axb3 {[%clk 0:02:53]}  Nf6 {[%clk 0:02:35]} 10. Nc3 {[%clk 0:02:52]}  Be7 {[%clk 0:02:33]} 11. Bb2 {[%clk 0:02:51]}  O-O {[%clk 0:02:31]} 12. Ne4 {[%clk 0:02:52]}  Nxe4 {[%clk 0:02:11]} 13. Bxe4 {[%clk 0:02:51]}  f6 {[%clk 0:02:09]} 14. Nd3 {[%clk 0:02:50]}  Bd6 {[%clk 0:01:58]} 15. Qc2 {[%clk 0:02:43]}  Nd7 {[%clk 0:01:40]} 16. Rfc1 {[%clk 0:02:13]}  Rc8 {[%clk 0:01:32]} 17. Bxh7+ {[%clk 0:02:09]}  Kh8 {[%clk 0:01:25]} 18. Be4 {[%clk 0:02:05]}  Qe7 {[%clk 0:01:02]} 19. e3 {[%clk 0:01:46]}  Rc7 {[%clk 0:00:59]} 20. Nc5 {[%clk 0:01:20]}  Bxc5 {[%clk 0:00:59]} 21. dxc5 {[%clk 0:01:21]}  f5 {[%clk 0:00:58]} 22. Bg2 {[%clk 0:01:20]}  e5 {[%clk 0:00:52]} 23. b4 {[%clk 0:01:16]}  e4 {[%clk 0:00:51]} 24. Rd1 {[%clk 0:00:59]}  Ne5 {[%clk 0:00:51]} 25. Rd6 {[%clk 0:00:59]}  Nc4 {[%clk 0:00:43]} 26. Rad1 {[%clk 0:00:58]}  Bc8 {[%clk 0:00:33]} 27. Bf1 {[%clk 0:00:47]}  Be6 {[%clk 0:00:29]} 28. Bxc4 {[%clk 0:00:38]}  Bxc4 {[%clk 0:00:30]} 29. Rh6+ {[%clk 0:00:39]}  Kg8 {[%clk 0:00:30]} 30. Rg6 {[%clk 0:00:39]}  Qe8 {[%clk 0:00:19]} 31. Rdd6 {[%clk 0:00:38]}  Rff7 {[%clk 0:00:18]} 32. Qc3 {[%clk 0:00:31]}  Rcd7 {[%clk 0:00:16]} 33. h4 {[%clk 0:00:26]}  Rfe7 {[%clk 0:00:11]} 34. h5 {[%clk 0:00:26]}  Kh7 {[%clk 0:00:10]} 35. Qd4 {[%clk 0:00:19]}  Bd5 {[%clk 0:00:10]} 36. h6 {[%clk 0:00:09]}  Qxg6 {[%clk 0:00:10]} 37. Rxg6 {[%clk 0:00:09]}  Kxg6 {[%clk 0:00:10]} 38. hxg7 {[%clk 0:00:09]}  Rxg7 {[%clk 0:00:03]} 39. Qf6+ {[%clk 0:00:09]}  Kh7 {[%clk 0:00:03]} 40. Qxf5+ {[%clk 0:00:09]}  Kg8 {[%clk 0:00:03]} 41. Bxg7 {[%clk 0:00:09]}  Rxg7 {[%clk 0:00:04]} 42. Qc8+ {[%clk 0:00:09]}  Kh7 {[%clk 0:00:05]} 43. Qxa6 {[%clk 0:00:09]}  Kg6 {[%clk 0:00:05]} 44. Qc8 {[%clk 0:00:09]}  Ra7 {[%clk 0:00:05]} 45. Qe8+ {[%clk 0:00:09]}  Kg7 {[%clk 0:00:05]} 46. Kg2 {[%clk 0:00:09]}  Ra4 {[%clk 0:00:04]} 47. Qe5+ {[%clk 0:00:09]}  Kg6 {[%clk 0:00:05]} 48. Qc3 {[%clk 0:00:08]}  Ra2 {[%clk 0:00:05]} 49. g4 {[%clk 0:00:09]}  Kg5 {[%clk 0:00:04]} 50. Kg3 {[%clk 0:00:09]}  Kg6 {[%clk 0:00:04]} 51. Qe5 {[%clk 0:00:09]}  Rc2 {[%clk 0:00:02]} 52. Qf5+ {[%clk 0:00:09]}  Kg7 {[%clk 0:00:03]} 53. g5 {[%clk 0:00:10]}  Rc1 {[%clk 0:00:03]} 54. Qf6+ {[%clk 0:00:10]}  Kg8 {[%clk 0:00:03]} 55. g6 {[%clk 0:00:09]}  Rg1+ {[%clk 0:00:03]} 56. Kf4 {[%clk 0:00:10]}  Rg2 {[%clk 0:00:04]} 57. Ke5 {[%clk 0:00:10]}  Rg1 {[%clk 0:00:03]} 58. Kd6 {[%clk 0:00:11]}  Rg2 {[%clk 0:00:04]} 59. Ke7 {[%clk 0:00:11]} 1-0


[Site "https://www.chess.com"]